bitfinex/quotes_ETHUSD_20251010
["timestamp","ask_amount","ask_price","bid_price","bid_amount"]
[1760104088057,10.6347221,4379.2,4379.1,0.01]
[1760104088262,8.3512,4379.2,4379.1,0.01]
[1760104088446,10.6347221,4379.2,4379.1,0.01]
[1760104088753,8.3512,4379.2,4379.1,0.01]
[1760104089056,2.9342,4379.2,4379.1,0.01]
[1760104089256,7.336,4379.2,4379.1,0.61334776]
[1760104089457,7.336,4379.2,4379.1,0.01]
[1760104089458,5.416,4379.2,4379.1,0.01]
[1760104089660,3.514,4379.2,4379.1,0.01]
[1760104089873,10.0638221,4379.2,4379.1,0.61107583]
[1760104090039,0.6336,4378.6,4378.1,0.01]
[1760104090371,2.5536,4378.7,4378.1,0.01]
[1760104090372,4.20394929,4378.4,4378.1,0.01]
[1760104090660,5.439,4378.3,4378.1,0.01]
[1760104090833,5.439,4378.2,4378.1,0.01]
[1760104091035,8.16734367,4378.2,4378.1,0.01]
[1760104091229,5.8833,4378.2,4378.1,0.01]
[1760104091638,7.359,4378.2,4378.1,0.01]
[1760104091958,10.08734367,4378.2,4378.1,0.01]
[1760104092470,1.92,4378.2,4378.1,0.01]
[1760104092689,7.358,4378.2,4378.1,0.01]
[1760104092979,7.8023,4378.2,4378.1,0.01]
[1760104093141,5.8993,4378.2,4378.1,0.01]
[1760104093599,7.8013,4378.2,4378.1,0.01]
[1760104095659,10.08454367,4378.2,4378.1,0.01]
[1760104096046,10.71814367,4378.2,4378.1,0.01]
[1760104098084,10.71714367,4378.2,4378.1,0.01]
[1760104098283,5.8965,4378.2,4378.1,0.01]
[1760104098481,10.08254367,4378.2,4378.1,0.01]
[1760104099499,1.9192,4378.2,4378.1,0.01]
[1760104099649,7.3542,4378.2,4378.1,0.01]
[1760104099989,1.0779,4378.7,4378.1,0.01]
[1760104099990,0.1136,4378.3,4378.1,0.01]
[1760104100188,2.434,4378.2,4378.1,0.01]
[1760104100347,2.434,4378.2,4378.1,0.22003672]
[1760104100552,2.0336,4378.6,4378.1,0.22003672]
[1760104100882,1.92,4378.4,4378.1,0.01]
[1760104101083,2.4779,4378.6,4378.1,0.01]
[1760104101285,0.5579,4378.6,4378.2,0.21026627]
[1760104101458,0.1136,4378.6,4378.3,2.49423209]
[1760104101658,0.2184,4379.8,4378.4,0.21026627]
[1760104101890,5.88660401,4379.7,4378.5,3.70032286]
[1760104102072,5.88660401,4379.7,4378.9,2.28367383]
[1760104102387,5.434,4379.6,4379.0,2.49388916]
[1760104102684,5.434,4379.6,4378.5,1.20617599]
[1760104102685,2.28344898,4379.4,4379.1,0.21026627]
[1760104102844,5.8773,4379.5,4379.2,0.21026499]
[1760104103046,1.92,4379.3,4379.0,2.28360927]
[1760104103249,2.28318609,4379.9,4379.1,0.21028149]
[1760104103487,1.92,4379.7,4379.2,0.21028149]
[1760104103670,4.20326477,4379.7,4378.9,2.28365503]
[1760104103870,4.20326477,4379.7,4378.6,1.20617599]
[1760104103871,1.92,4379.7,4378.7,2.28378285]
[1760104104287,1.92,4379.7,4378.7,1.20617599]
[1760104104288,2.28335709,4379.6,4378.7,1.20617599]
[1760104104452,2.28335709,4379.6,4378.8,2.28369084]
[1760104104787,2.28346996,4379.3,4378.7,1.20617599]
[1760104104951,1.92,4379.1,4378.4,1.20617599]
[1760104105147,2.28397983,4378.4,4378.1,0.011]
[1760104105402,5.433,4378.3,4378.1,0.011]
[1760104105605,2.28404367,4378.2,4378.1,0.011]
[1760104105900,2.72834367,4378.2,4378.1,0.011]
[1760104106684,4.64834367,4378.2,4378.1,0.011]
[1760104107107,1.92,4378.2,4378.1,0.011]
[1760104107401,10.07594367,4378.2,4378.1,0.011]
[1760104107985,14.75154367,4378.2,4378.1,0.011]
[1760104108186,5.27754367,4378.2,4378.1,0.011]
[1760104108389,2.72394367,4378.2,4378.1,0.011]
[1760104108691,10.07394367,4378.2,4378.1,0.011]
[1760104110070,10.70754367,4378.2,4378.1,0.011]
[1760104110272,5.27754367,4378.2,4378.1,0.011]
[1760104110457,16.65154367,4378.2,4378.1,0.011]
[1760104110812,31.10442869,4378.2,4378.1,1e-08]
[1760104111777,40.53971869,4378.2,4378.1,1e-08]
[1760104111988,34.25156769,4378.2,4378.1,1e-08]
[1760104112863,22.87756769,4378.2,4378.1,1e-08]
[1760104113069,34.25156769,4378.2,4378.1,1e-08]
[1760104113269,2.91816547,4377.2,4377.1,1e-08]
[1760104113462,10.26716547,4377.2,4377.1,1e-08]
[1760104113686,10.70706547,4377.2,4377.1,1e-08]
[1760104114899,5.27806547,4377.2,4377.1,1e-08]
[1760104115077,16.65306547,4377.2,4377.1,1e-08]
[1760104115396,5.27806547,4377.2,4377.1,1e-08]
[1760104115596,16.65206547,4377.2,4377.1,1e-08]
[1760104115799,2.28449156,4377.4,4377.1,1e-08]
[1760104115800,0.6644,4377.8,4377.1,1e-08]
[1760104116099,0.4399,4377.2,4377.1,1e-08]
[1760104116302,3.90246547,4377.2,4377.1,1e-08]
[1760104116522,1.6179,4377.2,4377.1,1e-08]
[1760104116684,3.90246547,4377.2,4377.1,1e-08]
[1760104117016,0.4399,4377.2,4377.1,1e-08]
[1760104117202,7.7879,4377.2,4377.1,1e-08]
[1760104117587,2.3599,4377.2,4377.1,1e-08]
[1760104117919,7.348,4377.2,4377.1,1e-08]
[1760104118322,9.63256547,4377.2,4377.1,1e-08]
[1760104118620,7.348,4377.2,4377.1,1e-08]
[1760104118822,1.92,4377.2,4377.1,1e-08]
[1760104118992,7.348,4377.2,4377.1,1e-08]
[1760104119584,1.92,4377.2,4377.1,1e-08]
[1760104119788,7.347,4377.2,4377.1,1e-08]
[1760104120011,1.92,4377.2,4377.1,0.00100001]
[1760104120322,2.2841768,4378.0,4377.2,2.28455432]
[1760104120519,4.20425546,4377.8,4377.1,0.22956261]
[1760104120687,1.92,4377.8,4377.1,0.00100001]
[1760104121291,5.426,4377.7,4377.1,0.00100001]
[1760104121611,2.28414984,4378.0,4377.2,2.28456547]
[1760104121811,2.28420118,4377.9,4377.2,2.28456547]
[1760104122110,5.426,4377.8,4377.4,2.28445026]
[1760104122310,2.28411725,4378.1,4377.3,2.28450099]
[1760104122626,2.28587463,4378.6,4377.7,2.28426297]
[1760104122815,2.28587463,4378.6,4377.7,2.2842699]
[1760104122816,5.425,4378.5,4377.7,2.2842699]
[1760104123017,5.443,4378.4,4377.5,2.2844089]
[1760104123226,0.002,4378.6,4378.1,2.28405798]
[1760104123428,0.002,4378.6,4378.2,0.13644043]
[1760104123583,0.002,4378.6,4378.4,2.39752435]
[1760104123584,0.72,4378.5,4378.4,2.39752435]
[1760104123912,0.002,4378.6,4378.5,2.28388717]
[1760104124112,4.832,4378.6,4378.4,2.39752767]
[1760104124420,4.832,4378.6,4378.4,0.1136]
[1760104125005,4.832,4378.6,4378.4,2.39753327]
[1760104125201,4.832,4378.6,4378.4,0.50964568]
[1760104125511,4.832,4378.6,4378.4,0.0392]
[1760104125712,5.424,4378.5,4378.4,0.0392]
[1760104125911,5.424,4378.5,4378.4,2.32313933]
[1760104126123,0.002,4378.6,4378.4,0.0392]
[1760104126293,5.423,4378.5,4378.4,2.32313933]
[1760104127205,5.423,4378.5,4378.4,0.0392]
[1760104127430,0.002,4378.6,4378.4,0.0392]
[1760104127661,5.423,4378.5,4378.4,2.32313933]
[1760104127998,0.002,4378.6,4378.4,2.32313933]
[1760104128199,5.422,4378.5,4378.4,2.32313933]
[1760104128533,5.422,4378.5,4378.4,0.0392]
[1760104128719,2.28398368,4378.4,4377.2,2.28456547]
[1760104128925,5.8517,4378.5,4377.8,0.1136]
[1760104128926,5.9653,4378.5,4377.8,0.1136]
[1760104129122,2.28415081,4378.0,4377.8,0.1136]
[1760104129323,5.9653,4378.5,4377.1,0.00100001]
[1760104129324,3.519,4377.9,4377.1,0.00100001]
[1760104129526,3.519,4377.8,4377.2,0.1136]
[1760104129703,1.902,4377.7,4377.2,0.1136]
[1760104129898,4.18631672,4377.7,4377.2,0.1136]
[1760104130104,0.4297,4377.6,4377.2,0.1136]
[1760104130326,3.9487,4377.5,4377.2,0.1136]
[1760104131130,2.28451328,4377.3,4377.1,0.00100001]
[1760104131303,3.518,4377.2,4377.1,0.00100001]
[1760104131518,3.9477,4377.2,4377.1,0.00100001]
[1760104131719,3.518,4377.2,4377.1,0.00100001]
[1760104132034,6.23226547,4377.2,4377.1,0.00100001]
[1760104132237,8.15226547,4377.2,4377.1,0.00100001]
[1760104133037,8.78586547,4377.2,4377.1,0.00100001]
[1760104133439,2.28409716,4378.1,4377.1,0.00100001]
[1760104133440,2.28444357,4377.5,4377.1,0.00100001]
[1760104133639,0.4297,4377.2,4377.1,0.00100001]
[1760104133838,8.92726547,4377.2,4377.1,0.00100001]
[1760104134043,9.56086547,4377.2,4377.1,0.00100001]
[1760104134548,8.78686547,4377.2,4377.1,0.00100001]
[1760104134714,10.68886547,4377.2,4377.1,0.00100001]
[1760104134918,4.63426547,4377.2,4377.1,0.00100001]
[1760104135114,1.92,4377.2,4377.1,0.00100001]
[1760104135319,0.4297,4377.7,4377.1,0.00100001]
[1760104135547,2.28425793,4377.8,4377.1,0.00100001]
[1760104135744,1.92,4378.0,4377.1,0.45804313]
[1760104135745,1.92,4377.6,4377.1,0.45804313]
[1760104135955,1.92,4377.6,4377.1,2.74265205]
[1760104136341,0.4297,4378.2,4377.1,2.74265205]
[1760104136654,2.28424507,4377.9,4377.1,2.74264917]
[1760104136827,1.92,4377.7,4377.1,0.45804313]
[1760104137151,1.92,4377.7,4377.2,2.28451856]
[1760104137350,1.92,4377.7,4377.1,0.45804313]
[1760104137653,1.92,4377.7,4377.1,2.28561455]
[1760104137830,1.92,4377.5,4377.2,2.28456547]
[1760104138037,1.92,4377.5,4377.1,2.28561399]
[1760104138233,2.3611,4377.5,4377.1,0.00100001]
[1760104138823,2.28456547,4377.2,4377.1,0.00100001]
[1760104139029,3.517,4377.2,4377.1,0.00100001]
[1760104139231,1.92,4377.7,4377.1,0.00100001]
[1760104139431,0.4411,4378.2,4377.1,0.00100001]
[1760104139625,7.3382,4378.1,4377.1,0.00100001]
[1760104139964,5.419,4378.0,4377.2,2.28454385]
[1760104140164,0.002,4378.4,4377.3,0.02284513]
[1760104140328,1.902,4377.9,4377.1,0.00100001]
[1760104140661,3.517,4377.8,4377.2,0.27262526]
[1760104141265,3.517,4377.8,4377.1,0.00100001]
[1760104141477,0.4411,4377.7,4377.1,0.00100001]
[1760104141676,2.28439807,4377.6,4377.1,0.00100001]
[1760104142083,2.72549807,4377.6,4377.1,0.00100001]
[1760104142288,0.4411,4377.5,4377.1,0.11460001]
[1760104142579,0.4411,4377.5,4377.1,0.00100001]
[1760104142580,4.20456547,4377.2,4377.1,0.00100001]
[1760104142781,4.83816547,4377.2,4377.1,0.00100001]
[1760104143084,11.22526547,4377.2,4377.1,0.00100001]
[1760104143241,14.74226547,4377.2,4377.1,0.00100001]
[1760104143445,16.64426547,4377.2,4377.1,0.00100001]
[1760104143764,4.64566547,4377.2,4377.1,0.00100001]
[1760104143970,10.06466547,4377.2,4377.1,0.00100001]
[1760104144477,4.64566547,4377.2,4377.1,0.00100001]
[1760104144683,10.06466547,4377.2,4377.1,0.00100001]
[1760104144845,4.64566547,4377.2,4377.1,0.00100001]
[1760104145346,10.69826547,4377.2,4377.1,0.00100001]
[1760104145664,25.3306011,4377.2,4377.1,0.00100001]
[1760104147586,25.3306011,4377.2,4376.1,0.01]
[1760104147587,0.6336,4376.8,4376.1,0.01]
[1760104147800,4.83868751,4376.2,4376.1,0.01]
[1760104148077,10.25768751,4376.2,4376.1,0.01]
[1760104148282,10.69878751,4376.2,4376.1,0.01]
[1760104149082,10.69878751,4376.2,4376.1,1e-08]
[1760104150668,10.69878751,4376.2,4374.6,0.001]
[1760104150669,2.9192098,4375.2,4374.6,0.001]
[1760104150867,10.2592098,4375.2,4374.6,0.001]
[1760104151067,10.7003098,4375.2,4374.6,0.001]
[1760104151268,10.7003098,4375.2,4375.1,1e-08]
[1760104154682,10.7003098,4375.2,4374.6,0.001]
[1760104154683,4.83926204,4375.1,4374.6,0.001]
[1760104154857,19.47180666,4374.7,4374.6,0.001]
[1760104155188,22.98980666,4374.7,4374.6,0.001]
[1760104155363,23.43090666,4374.7,4374.6,0.001]
[1760104155870,5.28057103,4374.7,4374.6,0.001]
[1760104156384,14.74757103,4374.7,4374.6,0.001]
[1760104156589,5.28057103,4374.7,4374.6,0.001]
[1760104157189,16.65157103,4374.7,4374.6,0.001]
[1760104157756,5.28057103,4374.7,4374.6,0.001]
[1760104158155,16.65157103,4374.7,4374.6,0.001]
[1760104158385,5.28057103,4374.7,4374.6,0.001]
[1760104158573,4.64697103,4374.7,4374.6,0.001]
[1760104158773,8.79957103,4374.7,4374.6,0.001]
[1760104158974,5.28057103,4374.7,4374.6,0.001]
[1760104159167,16.65157103,4374.7,4374.6,0.001]
[1760104159995,2.9947,4374.7,4374.6,0.001]
[1760104160294,3.36057103,4374.7,4374.6,0.001]
[1760104160491,16.65157103,4374.7,4374.6,0.001]
[1760104161064,5.28057103,4374.7,4374.6,0.001]
[1760104161263,16.65357103,4374.7,4374.6,0.001]
[1760104162007,8.79877103,4374.7,4374.6,0.001]
[1760104162204,16.65277103,4374.7,4374.6,0.001]
[1760104163012,14.3669,4374.7,4374.6,0.001]
[1760104163203,16.65277103,4374.7,4374.6,0.001]
[1760104164416,0.6336,4374.2,4373.8,0.001]
[1760104164710,2.28608005,4374.3,4373.8,0.001]
[1760104164711,19.69872475,4373.9,4373.8,0.001]
[1760104165017,25.12172475,4373.9,4373.8,0.001]
[1760104165309,25.59412475,4373.9,4373.8,0.001]
[1760104170521,23.30783563,4373.9,4373.1,1e-08]
[1760104170721,2.5536,4373.1,4372.1,0.01]
[1760104170896,4.84077807,4372.2,4372.1,0.01]
[1760104171096,2.28770131,4371.2,4371.1,0.01]
[1760104171298,9.63170131,4371.2,4371.1,0.01]
[1760104171511,10.07860131,4371.2,4371.1,0.01]
[1760104171698,10.71220131,4371.2,4371.1,0.01]
[1760104171924,10.71220131,4371.2,4371.1,1e-08]
[1760104171925,11.09974878,4371.2,4371.1,1e-08]
[1760104172782,17.05074878,4371.2,4371.1,1e-08]
[1760104173293,5.67574878,4371.2,4371.1,1e-08]
[1760104173732,9.19574878,4371.2,4371.1,1e-08]
[1760104173936,5.28820131,4371.2,4371.1,1e-08]
[1760104174436,2.3669,4371.2,4371.1,1e-08]
[1760104174736,10.07860131,4371.2,4371.1,1e-08]
[1760104175091,11.8389,4371.2,4371.1,1e-08]
[1760104175288,13.7429,4371.2,4371.1,1e-08]
[1760104175489,16.03060131,4371.2,4371.1,1e-08]
[1760104175923,13.7429,4371.2,4371.1,1e-08]
[1760104176232,16.03060131,4371.2,4371.1,1e-08]
[1760104176412,5.28820131,4371.2,4371.1,1e-08]
[1760104176641,8.4255,4371.2,4371.1,1e-08]
[1760104176951,10.71320131,4371.2,4371.1,1e-08]
[1760104177256,5.28820131,4371.2,4371.1,1e-08]
[1760104177460,4.65460131,4371.2,4371.1,1e-08]
[1760104177754,5.28820131,4371.2,4371.1,1e-08]
[1760104178123,10.08060131,4371.2,4371.1,1e-08]
[1760104178423,10.71420131,4371.2,4371.1,1e-08]
[1760104178622,10.71420131,4371.2,4371.1,0.00100001]
[1760104179060,25.34653694,4371.2,4371.1,1e-08]
[1760104179226,4.84135365,4371.1,4370.6,0.001]
[1760104179425,0.6336,4370.8,4370.6,0.001]
[1760104179626,8.61792302,4370.7,4370.6,0.001]
[1760104179862,9.06482302,4370.7,4370.6,0.001]
[1760104181162,9.06482302,4370.7,4369.1,0.01]
[1760104181163,0.6336,4370.5,4369.1,0.01]
[1760104181460,5.07954851,4369.2,4369.1,0.01]
[1760104181758,16.45954851,4369.2,4369.1,0.01]
[1760104181963,16.90644851,4369.2,4369.1,0.01]
[1760104182527,5.97735598,4369.2,4369.1,0.01]
[1760104183161,2.60810747,4369.2,4369.1,0.01]
[1760104183348,8.98984851,4369.2,4369.1,0.01]
[1760104183663,9.62344851,4369.2,4369.1,0.01]
[1760104184066,9.62264851,4369.2,4369.1,0.01]
[1760104184567,9.62264851,4369.2,4369.1,1e-08]
[1760104184944,7.3339,4369.2,4369.1,1e-08]
[1760104185145,5.52564851,4369.2,4369.1,1e-08]
[1760104185345,16.90764851,4369.2,4369.1,1e-08]
[1760104186670,15.00364851,4369.2,4369.1,1e-08]
[1760104186861,16.90864851,4369.2,4369.1,1e-08]
[1760104187372,0.6336,4369.0,4367.1,0.01]
[1760104187570,4.20880089,4369.1,4367.1,0.01]
[1760104187571,19.47520809,4368.2,4368.1,1e-08]
[1760104187797,2.5536,4368.1,4367.1,0.01]
[1760104187973,0.6336,4367.9,4367.1,0.01]
[1760104188269,0.4469,4368.1,4367.1,0.01]
[1760104188472,1.206,4368.0,4367.1,0.01]
[1760104188669,3.097,4367.9,4367.1,0.01]
[1760104188875,3.097,4367.8,4367.7,2.28953453]
[1760104189183,3.097,4367.8,4367.2,0.27359498]
[1760104189184,5.429,4367.8,4367.2,0.27359498]
[1760104189367,5.429,4367.8,4367.4,2.28968736]
[1760104189578,5.429,4367.8,4367.7,2.28953453]
[1760104190299,5.429,4367.8,4367.3,2.2896986]
[1760104190300,2.3609,4367.8,4367.1,0.01]
[1760104190447,2.28958695,4367.6,4366.1,0.01]
[1760104190647,2.9239211,4366.2,4366.1,0.01]
[1760104190847,10.2749211,4366.2,4366.1,0.01]
[1760104191143,10.7158211,4366.2,4366.1,0.01]
[1760104191345,5.2848211,4366.2,4366.1,0.01]
[1760104191605,2.3609,4366.2,4366.1,0.01]
[1760104191768,1.92,4366.2,4366.1,0.01]
[1760104191955,7.352,4366.2,4366.1,0.01]
[1760104192165,1.92,4366.2,4366.1,0.01]
[1760104192366,5.432,4366.2,4366.1,0.01]
[1760104192568,0.4409,4367.6,4366.1,0.583]
[1760104192880,5.433,4367.5,4366.1,0.01]
[1760104193046,0.4409,4367.5,4366.8,2.28998959]
[1760104193377,5.014,4367.4,4366.8,0.22899896]
[1760104193547,5.028,4367.3,4366.8,0.22899896]
[1760104193745,5.028,4367.3,4366.1,0.147]
[1760104194275,0.4409,4367.5,4366.1,0.147]
[1760104194577,0.434,4367.4,4366.8,2.28998475]
[1760104194786,0.4409,4367.6,4366.1,0.147]
[1760104195074,4.45,4367.5,4366.5,2.29016163]
[1760104195274,4.45,4367.5,4366.6,0.22901616]
[1760104195492,4.45,4367.5,4366.1,0.01]
[1760104195669,2.28995247,4367.0,4366.1,0.01]
[1760104195870,0.4409,4367.4,4366.1,0.01]
[1760104196070,0.4409,4367.1,4366.1,0.01]
[1760104196271,1.906,4367.0,4366.1,0.01]
[1760104196496,3.138,4366.9,4366.1,0.01]
[1760104196901,2.28980569,4367.2,4366.1,0.01]
[1760104197064,0.4409,4367.3,4366.1,0.01]
[1760104197264,2.3665,4367.1,4366.1,0.01]
[1760104197589,0.1144,4366.8,4366.1,0.1244]
[1760104197768,3.528,4366.7,4366.1,0.1244]
[1760104198495,0.1144,4367.2,4366.5,0.1144]
[1760104198689,0.4465,4368.0,4366.5,0.1144]
[1760104198887,0.002,4367.5,4367.4,2.2896918]
[1760104199196,2.991,4367.5,4367.4,0.24040918]
[1760104199497,2.991,4367.5,4367.4,0.1144]
[1760104199695,2.991,4367.5,4367.4,2.4040918]
[1760104200195,5.437,4367.5,4367.4,0.1144]
[1760104200595,7.72663938,4367.5,4367.4,0.1144]
[1760104200797,7.72663938,4367.5,4367.1,0.1144]
[1760104200798,0.002,4367.5,4367.1,0.1144]
[1760104201186,3.675,4367.4,4367.1,0.1144]
[1760104201373,5.436,4367.3,4367.2,2.28979666]
[1760104201562,0.002,4367.5,4367.4,2.2896918]
[1760104201762,0.002,4367.5,4367.2,2.53250628]
[1760104201763,4.813,4367.5,4367.2,0.24270962]
[1760104202001,4.813,4367.5,4367.4,0.1144]
[1760104202199,4.813,4367.5,4366.2,0.5906]
[1760104202695,4.813,4367.5,4365.5,0.4536]
[1760104202696,1.92,4367.4,4365.5,0.4536]
[1760104202874,2.29000229,4366.9,4366.0,2.29042494]
[1760104203073,2.3665,4367.4,4365.5,0.4536]
[1760104203074,3.529,4366.8,4365.5,0.4536]
[1760104203274,1.907,4366.7,4365.1,0.01]
[1760104203501,2.5536,4366.6,4365.1,0.01]
[1760104203702,2.5536,4366.6,4365.1,0.4636]
[1760104203703,1.92,4366.6,4365.1,0.4636]
[1760104203903,1.92,4366.4,4365.6,2.29063074]
[1760104204200,1.92,4367.0,4365.9,2.29046727]
[1760104204403,0.6336,4367.1,4365.1,0.01]
[1760104204404,2.29005885,4366.7,4365.1,0.01]
[1760104204708,2.2903211,4366.2,4365.2,2.290842]
[1760104205002,5.8243211,4366.2,4365.1,0.01]
[1760104205201,6.2708211,4366.2,4365.1,0.01]
[1760104205501,3.9805,4366.2,4365.6,2.29062069]
[1760104205703,5.8875,4366.2,4365.7,2.2905429]
[1760104206005,0.4465,4366.6,4365.6,2.29062818]
[1760104206203,5.442,4366.5,4365.1,0.01]
[1760104206501,0.6336,4367.1,4365.1,0.01]
[1760104206502,2.7368211,4366.2,4365.1,0.01]
[1760104206804,4.6151,4366.2,4365.1,0.01]
[1760104207007,6.9054211,4366.2,4365.1,0.01]
[1760104207877,8.8254211,4366.2,4365.1,0.01]
[1760104208904,8.8254211,4366.2,4366.1,1e-08]
[1760104209106,8.8254211,4366.2,4365.1,1e-08]
[1760104209107,4.84397355,4366.1,4365.1,1e-08]
[1760104209408,3.15984578,4365.2,4365.1,1e-08]
[1760104209611,11.01247874,4365.2,4365.1,1e-08]
[1760104209811,11.45897874,4365.2,4365.1,1e-08]
[1760104210105,16.80016174,4365.2,4365.1,1e-08]
[1760104210955,11.12187074,4365.2,4365.1,1e-08]
[1760104211248,16.93034578,4365.2,4365.1,1e-08]
[1760104211450,4.89274578,4365.2,4365.1,1e-08]
[1760104211623,0.6819,4365.2,4365.1,1e-08]
[1760104212121,15.01134578,4365.2,4365.1,1e-08]
[1760104212453,14.6405,4365.2,4365.1,1e-08]
[1760104212622,2.6019,4365.2,4365.1,1e-08]
[1760104212825,16.29774578,4365.2,4365.1,1e-08]
[1760104213027,2.6019,4365.2,4365.1,1e-08]
[1760104213253,0.6819,4365.2,4365.1,1e-08]
[1760104213422,0.61194514,4367.1,4365.1,1e-08]
[1760104213423,0.2354,4365.6,4365.1,1e-08]
[1760104213625,0.1144,4365.3,4365.1,1e-08]
[1760104213826,0.2354,4366.0,4365.1,0.22910445]
[1760104214041,3.537,4365.9,4365.3,0.1144]
[1760104214224,1.92,4365.8,4365.3,0.1144]
[1760104214417,0.1144,4366.1,4365.5,2.29066987]
[1760104214615,1.292,4366.0,4365.8,2.29051939]
[1760104214817,0.1144,4366.5,4365.9,2.29047848]
[1760104215019,5.444,4366.4,4366.0,2.5308974]
[1760104215232,5.444,4366.4,4366.0,2.53091307]
[1760104215566,5.444,4366.3,4366.0,0.24048785]
[1760104215930,5.444,4366.3,4365.2,2.2908348]
[1760104216131,2.29142735,4368.0,4366.4,2.29017184]
[1760104216132,0.1144,4366.9,4366.4,2.29017184]
[1760104216317,3.698,4366.8,4365.7,0.4536]
[1760104216524,1.791,4366.7,4366.4,0.1144]
[1760104216943,3.535,4366.6,4366.4,0.1144]
[1760104217220,3.535,4366.6,4365.0,1.92]
[1760104217221,2.5536,4366.4,4364.1,0.1346]
[1760104217443,1.92,4366.2,4364.6,2.29114588]
[1760104217647,1.92,4366.2,4365.0,2.29094769]
[1760104217848,1.0801,4366.5,4364.5,0.4536]
[1760104217849,1.92,4366.0,4365.2,2.29080267]
[1760104218154,7.0411,4366.5,4364.5,2.74477922]
[1760104218155,5.442,4365.9,4364.5,0.4536]
[1760104218728,2.29070857,4365.5,4364.4,2.29125778]
[1760104219068,0.4465,4365.8,4364.1,0.1346]
[1760104219069,3.535,4365.4,4364.1,0.1346]
[1760104219230,2.29142842,4368.0,4364.3,0.4536]
[1760104219231,0.6336,4366.3,4364.3,0.4536]
[1760104219435,2.29048213,4365.9,4365.1,0.00100001]
[1760104219744,2.29067306,4365.6,4365.1,0.00100001]
[1760104219920,3.535,4365.5,4365.1,0.00100001]
[1760104220124,1.92,4365.3,4365.1,0.00100001]
[1760104220422,2.29084578,4365.2,4365.1,0.00100001]
[1760104220629,4.65734578,4365.2,4365.1,0.00100001]
[1760104221162,5.29094578,4365.2,4365.1,0.00100001]
[1760104221824,3.0001,4365.2,4365.1,0.00100001]
[1760104222249,2.3665,4365.2,4365.1,0.00100001]
[1760104222431,0.61194514,4367.1,4365.1,0.00100001]
[1760104222432,0.6336,4365.7,4365.1,0.00100001]
[1760104222649,1.92,4365.5,4365.1,0.00100001]
[1760104223078,5.444,4365.6,4365.1,0.00100001]
[1760104223442,0.4465,4365.4,4365.1,0.00100001]
[1760104223642,2.73725337,4365.4,4365.1,0.00100001]
[1760104223845,0.4465,4365.4,4365.1,0.00100001]
[1760104224150,2.29084578,4365.2,4365.1,0.00100001]
[1760104224461,5.8905,4365.3,4365.1,0.00100001]
[1760104224668,0.4465,4365.2,4365.1,0.00100001]
[1760104224964,2.29038851,4366.1,4365.1,0.00100001]
[1760104224965,0.4465,4366.6,4365.1,0.23020478]
[1760104225128,0.4465,4366.6,4365.2,0.02290845]
[1760104225325,0.002,4366.8,4366.0,2.29042462]
[1760104225555,2.09,4366.5,4366.3,2.29021828]
[1760104225867,2.09,4366.5,4366.3,2.29022328]
[1760104226090,0.002,4366.8,4365.6,0.4536]
[1760104226394,5.451,4366.7,4366.4,2.29018097]
[1760104226591,5.8975,4366.7,4366.1,2.29032876]
[1760104226748,5.8975,4366.7,4366.2,2.29031267]
[1760104226749,5.451,4366.7,4366.2,2.29031267]
[1760104227084,0.002,4366.8,4366.2,0.4580782]
[1760104227284,0.002,4366.8,4366.7,2.29005885]
[1760104227650,2.706,4366.8,4366.6,2.40450734]
[1760104227882,2.706,4366.8,4366.6,0.1144]
[1760104228086,0.0012,4366.8,4366.7,2.40445885]
[1760104228289,5.4512,4366.8,4366.7,0.1144]
[1760104228804,3.5442,4366.8,4366.7,2.87535885]
[1760104229092,3.5432,4366.8,4366.7,3.39191017]
[1760104230291,3.5432,4366.8,4366.7,2.92101017]
[1760104230592,3.5432,4366.8,4366.1,0.6079]
[1760104230593,3.5432,4366.8,4366.1,0.137]
[1760104230951,3.5432,4366.8,4365.2,0.4709]
[1760104231350,3.5432,4366.8,4365.2,2.3909]
[1760104231595,3.5432,4366.8,4366.1,2.29035815]
[1760104231801,3.9779,4366.8,4365.7,2.29053242]
[1760104231950,2.29012122,4366.6,4365.1,0.47190001]
[1760104232151,2.29012122,4366.6,4365.1,0.00100001]
[1760104232152,2.29058693,4365.7,4365.1,0.00100001]
[1760104232488,5.448,4365.6,4365.1,0.00100001]
[1760104232652,1.92,4366.6,4365.1,0.00100001]
[1760104232853,6.42569118,4366.4,4365.3,2.2907933]
[1760104233158,1.92,4366.2,4365.1,2.29187282]
[1760104233357,1.92,4366.2,4365.1,2.29189785]
[1760104233698,2.29061717,4365.7,4365.1,0.00100001]
[1760104233902,5.448,4365.6,4365.1,0.00100001]
[1760104234050,5.448,4365.6,4365.1,2.29189116]
[1760104234251,5.448,4365.6,4365.1,0.00100001]
[1760104234596,5.447,4365.5,4365.1,0.00100001]
[1760104234808,3.54,4365.4,4365.1,2.29187785]
[1760104235103,0.4347,4366.1,4365.2,2.29084578]
[1760104235257,4.21011383,4366.6,4365.1,2.71492963]
[1760104235461,11.032,4366.5,4365.1,0.00100001]
[1760104235655,2.29048622,4365.9,4365.1,2.29188919]
[1760104235862,3.539,4365.8,4365.4,2.29073293]
[1760104236062,1.907,4365.7,4365.2,2.29080893]
[1760104236301,1.907,4365.7,4365.1,0.00100001]
[1760104237258,2.29042739,4366.0,4365.2,2.29084497]
[1760104237458,5.447,4365.9,4365.2,2.29084497]
[1760104237659,7.73748066,4365.9,4365.1,2.29189343]
[1760104237854,5.447,4365.8,4365.1,0.00100001]
[1760104238113,0.0012,4366.8,4365.2,0.4709]